[Event "1000GM Schev-G4 May 2024"]
[Site "Sunnyvale"]
[Date "2024.05.12"]
[Round "2.4"]
[White "Jaquez, Juan Manuel"]
[Black "Wu, Jayden"]
[Result "1-0"]
[ECO "B97"]
[WhiteElo "2208"]
[BlackElo "1953"]
[Annotator "ChessBase"]
[PlyCount "63"]
[EventDate "2024.05.10"]
[EventType "schev"]
[EventCountry "USA"]
[SourceTitle "playchess.com"]
[Source "ChessBase"]
[SourceQuality "1"]
[TimeControl "5400+30"]

1. e4 {[%emt 0:17:20]} c5 {[%emt 0:00:13]} 2. Nc3 {[%emt 0:00:14]} d6 {[%emt 0:00:10]} 3. Nf3 {[%emt 0:00:28]} Nf6 {[%emt 0:00:12]} 4. d4 {[%emt 0:00:35]} cxd4 {[%emt 0:00:10]} 5. Nxd4 {[%emt 0:00:10]} a6 {[%emt 0:00:06]} 6. Bg5 {[%emt 0:00:07]} e6 {[%emt 0:00:09]} 7. f4 {[%emt 0:00:06]} Qb6 {[%emt 0:00:08]} 8. a3 {[%emt 0:02:20]} Nbd7 {[%emt 0:03:02]} 9. Bh4 {[%emt 0:06:40]} Be7 {[%emt 0:00:53]} 10. Bf2 {[%emt 0:00:32]} Qc7 {[%emt 0:00:30]} 11. Bd3 {[%emt 0:01:51]} b6 {[%emt 0:01:21]} 12. Qe2 {[%emt 0:02:30]} Bb7 {[%emt 0:00:49]} 13. g4 {[%emt 0:06:03]} Nc5 {[%emt 0:07:50]} 14. g5 {[%emt 0:00:25]} Nxd3+ {[%emt 0:08:06]} 15. cxd3 {[%emt 0:00:15]} Nd7 {[%emt 0:00:17]} 16. Rc1 {[%emt 0:06:22]} Qd8 {[%emt 0:01:26]} 17. h4 {[%emt 0:00:22]} h5 {[%emt 0:04:55]} 18. g6 {[%emt 0:05:30]} Nf6 {[%emt 0:06:06]} 19. f5 {[%emt 0:05:39]} exf5 {[%emt 0:02:18]} 20. gxf7+ {[%emt 0:01:40]} Kxf7 {[%emt 0:01:10]} 21. Nxf5 {[%emt 0:00:35]} Re8 {[%emt 0:03:35]} 22. Qf3 {[%emt 0:04:25]} Bf8 {[%emt 0:02:35]} 23. Bd4 {[%emt 0:03:28]} g6 {[%emt 0:04:47]} 24. Ne3 {[%emt 0:00:50]} Bg7 {[%emt 0:02:47]} 25. Ncd5 {[%emt 0:02:52]} Bxd5 {[%emt 0:02:17]} 26. Nxd5 {[%emt 0:00:12]} Re6 {[%emt 0:00:28]} 27. Rc7+ {[%emt 0:02:35]} Kg8 {[%emt 0:00:11]} 28. Rf1 {[%emt 0:01:20]} Rc8 {[%emt 0:08:15]} 29. Bxf6 {[%emt 0:01:24]} Bxf6 {[%emt 0:02:54]} 30. Nxf6+ {[%emt 0:00:57]} Rxf6 {[%emt 0:00:27]} 31. Rxc8 {[%emt 0:00:13]} Qxc8 {[%emt 0:00:07]} 32. Qxf6 {[%emt 0:00:08]} 1-0

[Event "1000GM Schev-G4 May 2024"]
[Site "Sunnyvale"]
[Date "2024.05.12"]
[Round "3.1"]
[White "Rivera, Ingris"]
[Black "Pullela, Sricharan"]
[Result "1-0"]
[ECO "E71"]
[WhiteElo "2172"]
[BlackElo "2125"]
[Annotator "ChessBase"]
[PlyCount "69"]
[EventDate "2024.05.10"]
[EventType "schev"]
[EventCountry "USA"]
[SourceTitle "playchess.com"]
[Source "ChessBase"]
[SourceQuality "1"]
[TimeControl "5400+30"]

1. d4 {[%emt 0:00:02]} Nf6 {[%emt 0:01:31]} 2. c4 {[%emt 0:00:07]} g6 {[%emt 0:00:36]} 3. Nc3 {[%emt 0:00:06]} Bg7 {[%emt 0:00:03]} 4. e4 {[%emt 0:00:07]} d6 {[%emt 0:00:02]} 5. h3 {[%emt 0:00:07]} O-O {[%emt 0:00:05]} 6. Be3 {[%emt 0:00:06]} e5 {[%emt 0:00:58]} 7. d5 {[%emt 0:00:07]} a5 {[%emt 0:00:52]} 8. Bd3 {[%emt 0:00:48]} Nfd7 {[%emt 0:01:25]} 9. g4 {[%emt 0:02:00]} Nc5 {[%emt 0:00:29]} 10. Bc2 {[%emt 0:01:04]} c6 {[%emt 0:00:39]} 11. Nge2 {[%emt 0:00:41]} cxd5 {[%emt 0:00:49]} 12. cxd5 {[%emt 0:01:05]} Nba6 {[%emt 0:01:39]} 13. Ng3 {[%emt 0:02:09]} Bd7 {[%emt 0:00:41]} 14. Qd2 {[%emt 0:04:13]} b5 {[%emt 0:05:08]} 15. O-O {[%emt 0:04:44]} b4 {[%emt 0:01:13]} 16. Nd1 {[%emt 0:01:14]} Bb5 {[%emt 0:05:06]} 17. Re1 {[%emt 0:00:55]} Qd7 {[%emt 0:00:06]} 18. b3 {[%emt 0:12:23]} Rfc8 {[%emt 0:01:07]} 19. Nb2 {[%emt 0:01:03]} Qb7 {[%emt 0:01:15]} 20. h4 {[%emt 0:07:25]} Rc7 {[%emt 0:04:54]} 21. h5 {[%emt 0:01:02]} Rac8 {[%emt 0:00:51]} 22. Bd1 {[%emt 0:01:20]} Nd7 {[%emt 0:08:42]} 23. a4 {[%emt 0:15:51]} bxa3 {[%emt 0:16:22]} 24. Rxa3 {[%emt 0:00:16]} Ndc5 {[%emt 0:21:50]} 25. Rxa5 {[%emt 0:04:53]} Bd7 {[%emt 0:00:39]} 26. Ra3 {[%emt 0:03:04]} Qb4 {[%emt 0:03:48]} 27. Nc4 {[%emt 0:02:21]} Bf8 {[%emt 0:03:52]} 28. Be2 {[%emt 0:17:11]} Rb8 {[%emt 0:05:18]} 29. Rea1 {[%emt 0:06:40]} Nxb3 {[%emt 0:08:03]} 30. Qxb4 {[%emt 0:00:42]} Rxb4 {[%emt 0:00:04]} 31. Rxb3 {[%emt 0:00:51]} Rxb3 {[%emt 0:04:20]} 32. Rxa6 {[%emt 0:00:06]} Bb5 {[%emt 0:02:31]} 33. Ra8 {[%emt 0:00:34]} Kg7 {[%emt 0:00:13]} 34. h6+ {[%emt 0:01:43]} Kf6 {[%emt 0:00:39]} 35. Nd2 {[%emt 0:01:46]} 1-0

[Event "1000GM Schev-G4 May 2024"]
[Site "Sunnyvale"]
[Date "2024.05.12"]
[Round "3.2"]
[White "Zuluaga Mancilla, Cesar"]
[Black "Bhatta, Rohit"]
[Result "1/2-1/2"]
[ECO "D37"]
[WhiteElo "2190"]
[BlackElo "1976"]
[Annotator "ChessBase"]
[PlyCount "74"]
[EventDate "2024.05.10"]
[EventType "schev"]
[EventCountry "USA"]
[SourceTitle "playchess.com"]
[Source "ChessBase"]
[SourceQuality "1"]
[TimeControl "5400+30"]

1. d4 {[%emt 0:04:17]} Nf6 {[%emt 0:00:04]} 2. c4 {[%emt 0:00:15]} e6 {[%emt 0:00:05]} 3. a3 {[%emt 0:00:09]} d5 {[%emt 0:00:18]} 4. Nc3 {[%emt 0:00:07]} Be7 {[%emt 0:00:58]} 5. Nf3 {[%emt 0:00:19]} O-O {[%emt 0:00:53]} 6. e3 {[%emt 0:02:40]} b6 {[%emt 0:03:19]} 7. cxd5 {[%emt 0:00:12]} Nxd5 {[%emt 0:00:28]} 8. Qc2 {[%emt 0:01:06]} Bb7 {[%emt 0:02:34]} 9. Bd3 {[%emt 0:02:12]} h6 {[%emt 0:04:19]} 10. Bd2 {[%emt 0:02:09]} Nd7 {[%emt 0:02:09]} 11. O-O {[%emt 0:06:06]} c5 {[%emt 0:03:06]} 12. Rfd1 {[%emt 0:05:51]} Rc8 {[%emt 0:11:15]} 13. Nxd5 {[%emt 0:00:23]} Bxd5 {[%emt 0:00:37]} 14. Ba6 {[%emt 0:00:36]} Rc7 {[%emt 0:04:52]} 15. Rdc1 {[%emt 0:00:46]} Qa8 {[%emt 0:04:27]} 16. Ne1 {[%emt 0:02:01]} Bb7 {[%emt 0:05:59]} 17. Be2 {[%emt 0:05:30]} Bd6 {[%emt 0:08:33]} 18. Qa4 {[%emt 0:11:16]} Bc6 {[%emt 0:06:13]} 19. Bb5 {[%emt 0:00:38]} Bxb5 {[%emt 0:01:58]} 20. Qxb5 {[%emt 0:00:07]} Nf6 {[%emt 0:02:22]} 21. dxc5 {[%emt 0:00:41]} Rxc5 {[%emt 0:00:41]} 22. Rxc5 {[%emt 0:00:13]} Bxc5 {[%emt 0:00:10]} 23. b4 {[%emt 0:00:35]} Be7 {[%emt 0:00:45]} 24. Bc3 {[%emt 0:02:38]} Nd5 {[%emt 0:03:11]} 25. Bd4 {[%emt 0:00:08]} Bf6 {[%emt 0:01:11]} 26. Bxf6 {[%emt 0:00:07]} Nxf6 {[%emt 0:00:07]} 27. Nf3 {[%emt 0:00:18]} Rc8 {[%emt 0:03:48]} 28. h3 {[%emt 0:03:19]} Qb7 {[%emt 0:04:35]} 29. Rd1 {[%emt 0:00:31]} Nd5 {[%emt 0:01:40]} 30. Ne5 {[%emt 0:01:40]} Qc7 {[%emt 0:02:56]} 31. Qa6 {[%emt 0:03:31]} Rd8 {[%emt 0:01:54]} 32. Nf3 {[%emt 0:02:39]} Rd7 {[%emt 0:04:10]} 33. Ne5 {[%emt 0:06:34]} Rd8 {[%emt 0:00:24]} 34. Nf3 {[%emt 0:03:16]} Rd7 {[%emt 0:00:17]} 35. Rd4 {[%emt 0:08:51]} Nf6 {[%emt 0:03:22]} 36. Rxd7 {[%emt 0:02:06]} Qxd7 {[%emt 0:01:04]} 37. Ne5 {[%emt 0:02:41]} Qc7 {[%emt 0:01:07]} 1/2-1/2

[Event "1000GM Schev-G4 May 2024"]
[Site "Sunnyvale"]
[Date "2024.05.12"]
[Round "3.3"]
[White "Wu, Jayden"]
[Black "Cremisi, Daniel"]
[Result "0-1"]
[ECO "C18"]
[WhiteElo "1953"]
[BlackElo "2171"]
[Annotator "ChessBase"]
[PlyCount "62"]
[EventDate "2024.05.10"]
[EventType "schev"]
[EventCountry "USA"]
[SourceTitle "playchess.com"]
[Source "ChessBase"]
[SourceQuality "1"]
[TimeControl "5400+30"]

1. e4 {[%emt 0:00:16]} e6 {[%emt 0:00:01]} 2. d4 {[%emt 0:00:05]} d5 {[%emt 0:00:01]} 3. Nc3 {[%emt 0:00:08]} Bb4 {[%emt 0:00:06]} 4. e5 {[%emt 0:00:11]} c5 {[%emt 0:00:04]} 5. a3 {[%emt 0:00:02]} Bxc3+ {[%emt 0:00:04]} 6. bxc3 {[%emt 0:00:04]} Qa5 {[%emt 0:00:47]} 7. Bd2 {[%emt 0:01:02]} Qa4 {[%emt 0:00:22]} 8. Nf3 {[%emt 0:01:16]} Nc6 {[%emt 0:01:21]} 9. dxc5 {[%emt 0:06:19]} Nge7 {[%emt 0:02:09]} 10. Bd3 {[%emt 0:02:14]} Qa5 {[%emt 0:03:15]} 11. c4 {[%emt 0:03:39]} Qxc5 {[%emt 0:00:37]} 12. cxd5 {[%emt 1:21:14]} exd5 {[%emt 0:01:07]} 13. h3 {[%emt 0:00:00]} Bf5 {[%emt 0:02:22]} 14. Qe2 {[%emt 0:00:00]} Bxd3 {[%emt 0:04:36]} 15. Qxd3 {[%emt 0:00:00]} b5 {[%emt 0:04:23]} 16. O-O {[%emt 0:00:00]} O-O {[%emt 0:01:10]} 17. Rab1 {[%emt 0:00:00]} a6 {[%emt 0:01:03]} 18. Bb4 {[%emt 0:00:00]} Nxb4 {[%emt 0:00:49]} 19. axb4 {[%emt 0:00:00]} Qc4 {[%emt 0:01:04]} 20. Qxc4 {[%emt 0:00:00]} dxc4 {[%emt 0:00:42]} 21. Rfd1 {[%emt 0:00:00]} Rfd8 {[%emt 0:05:49]} 22. Nd4 {[%emt 0:00:00]} Rd5 {[%emt 0:01:46]} 23. e6 {[%emt 0:00:00]} Rad8 {[%emt 0:01:10]} 24. exf7+ {[%emt 0:00:00]} Kxf7 {[%emt 0:00:08]} 25. c3 {[%emt 0:00:00]} Nf5 {[%emt 0:00:19]} 26. Ra1 {[%emt 0:00:00]} Nxd4 {[%emt 0:00:14]} 27. Rxd4 {[%emt 0:00:00]} Rxd4 {[%emt 0:00:05]} 28. cxd4 {[%emt 0:00:00]} Rxd4 {[%emt 0:00:14]} 29. Rxa6 {[%emt 0:00:00]} c3 {[%emt 0:00:16]} 30. Ra1 {[%emt 0:00:00]} c2 {[%emt 0:00:40]} 31. Rc1 {[%emt 0:00:00]} Rd1+ {[%emt 0:01:03]} 0-1

[Event "1000GM Schev-G4 May 2024"]
[Site "Sunnyvale"]
[Date "2024.05.12"]
[Round "3.5"]
[White "Ramirez, Carlos"]
[Black "Champsi, Imran"]
[Result "1-0"]
[ECO "E93"]
[WhiteElo "2163"]
[BlackElo "2029"]
[Annotator "ChessBase"]
[PlyCount "91"]
[EventDate "2024.05.10"]
[EventType "schev"]
[EventCountry "USA"]
[SourceTitle "playchess.com"]
[Source "ChessBase"]
[SourceQuality "1"]
[TimeControl "5400+30"]

1. Nf3 {[%emt 0:03:49]} Nf6 {[%emt 0:00:50]} 2. c4 {[%emt 0:00:30]} g6 {[%emt 0:00:04]} 3. Nc3 {[%emt 0:00:05]} Bg7 {[%emt 0:00:20]} 4. e4 {[%emt 0:00:12]} d6 {[%emt 0:00:28]} 5. d4 {[%emt 0:00:09]} O-O {[%emt 0:00:03]} 6. Be2 {[%emt 0:00:16]} e5 {[%emt 0:00:01]} 7. d5 {[%emt 0:02:39]} a5 {[%emt 0:00:04]} 8. Bg5 {[%emt 0:00:12]} h6 {[%emt 0:02:55]} 9. Bh4 {[%emt 0:02:21]} Na6 {[%emt 0:01:41]} 10. Nd2 {[%emt 0:00:18]} Qe8 {[%emt 0:09:15]} 11. O-O {[%emt 0:07:47]} Nc5 {[%emt 0:02:32]} 12. Qc2 {[%emt 0:05:44]} b6 {[%emt 0:01:38]} 13. Nb5 {[%emt 0:07:16]} Qd7 {[%emt 0:01:58]} 14. Rfe1 {[%emt 0:17:39]} Ne8 {[%emt 0:00:46]} 15. f3 {[%emt 0:00:54]} f5 {[%emt 0:03:09]} 16. b3 {[%emt 0:00:15]} Qf7 {[%emt 0:12:47]} 17. a3 {[%emt 0:07:54]} f4 {[%emt 0:06:31]} 18. b4 {[%emt 0:01:43]} Nb7 {[%emt 0:00:14]} 19. Bf2 {[%emt 0:02:50]} g5 {[%emt 0:09:54]} 20. c5 {[%emt 0:02:00]} bxc5 {[%emt 0:04:51]} 21. bxc5 {[%emt 0:00:33]} Nxc5 {[%emt 0:09:13]} 22. Bxc5 {[%emt 0:00:08]} dxc5 {[%emt 0:00:02]} 23. Qxc5 {[%emt 0:00:11]} h5 {[%emt 0:02:20]} 24. Rac1 {[%emt 0:01:06]} Bd7 {[%emt 0:11:17]} 25. Nxc7 {[%emt 0:00:53]} Nxc7 {[%emt 0:00:16]} 26. Qxc7 {[%emt 0:00:02]} h4 {[%emt 0:04:27]} 27. Nc4 {[%emt 0:06:20]} Rac8 {[%emt 0:03:41]} 28. Qd6 {[%emt 0:00:29]} Bb5 {[%emt 0:01:30]} 29. Qb6 {[%emt 0:04:06]} Rb8 {[%emt 0:02:20]} 30. Qxa5 {[%emt 0:00:17]} Qh5 {[%emt 0:01:32]} 31. h3 {[%emt 0:00:34]} g4 {[%emt 0:01:20]} 32. fxg4 {[%emt 0:00:41]} Qg5 {[%emt 0:01:06]} 33. Bf3 {[%emt 0:00:45]} Rfc8 {[%emt 0:00:18]} 34. Nd6 {[%emt 0:00:32]} Rxc1 {[%emt 0:00:11]} 35. Rxc1 {[%emt 0:00:01]} Be2 {[%emt 0:00:02]} 36. Qc7 {[%emt 0:00:51]} Rb2 {[%emt 0:00:28]} 37. Qf7+ {[%emt 0:01:17]} Kh7 {[%emt 0:00:45]} 38. Rc7 {[%emt 0:02:03]} Bxf3 {[%emt 0:00:37]} 39. gxf3 {[%emt 0:00:21]} Rb1+ {[%emt 0:00:18]} 40. Kf2 {[%emt 0:00:07]} Rb2+ {[%emt 0:00:06]} 41. Ke1 {[%emt 0:00:02]} Rb1+ {[%emt 0:00:07]} 42. Kd2 {[%emt 0:00:21]} Rh1 {[%emt 0:00:08]} 43. Nf5 {[%emt 0:00:38]} Rxh3 {[%emt 0:00:10]} 44. Qf8 {[%emt 0:00:30]} Rxf3 {[%emt 0:00:26]} 45. Rxg7+ {[%emt 0:00:14]} Qxg7 {[%emt 0:00:09]} 46. Qxg7# {[%emt 0:00:10]} 1-0

[Event "1000GM Schev-G4 May 2024"]
[Site "Sunnyvale"]
[Date "2024.05.12"]
[Round "4.1"]
[White "Bhatta, Rohit"]
[Black "Rivera, Ingris"]
[Result "1/2-1/2"]
[ECO "E62"]
[WhiteElo "1976"]
[BlackElo "2172"]
[Annotator "ChessBase"]
[PlyCount "101"]
[EventDate "2024.05.10"]
[EventType "schev"]
[EventCountry "USA"]
[SourceTitle "playchess.com"]
[Source "ChessBase"]
[SourceQuality "1"]
[TimeControl "5400+30"]

1. d4 {[%emt 0:14:25]} Nf6 {[%emt 0:00:25]} 2. c4 {[%emt 0:00:07]} g6 {[%emt 0:00:07]} 3. g3 {[%emt 0:00:15]} Bg7 {[%emt 0:00:06]} 4. Bg2 {[%emt 0:00:13]} O-O {[%emt 0:00:12]} 5. Nc3 {[%emt 0:00:05]} d6 {[%emt 0:00:11]} 6. Nf3 {[%emt 0:00:05]} Nc6 {[%emt 0:00:10]} 7. O-O {[%emt 0:00:09]} e5 {[%emt 0:00:12]} 8. dxe5 {[%emt 0:00:47]} Nxe5 {[%emt 0:00:47]} 9. Nxe5 {[%emt 0:00:26]} dxe5 {[%emt 0:00:05]} 10. Qxd8 {[%emt 0:00:08]} Rxd8 {[%emt 0:00:03]} 11. Bg5 {[%emt 0:00:07]} Rf8 {[%emt 0:09:34]} 12. Rfd1 {[%emt 0:07:23]} c6 {[%emt 0:01:13]} 13. Na4 {[%emt 0:11:39]} Be6 {[%emt 0:09:49]} 14. b3 {[%emt 0:02:12]} Nd7 {[%emt 0:00:43]} 15. Be3 {[%emt 0:13:44]} a6 {[%emt 0:06:18]} 16. Nc5 {[%emt 0:10:09]} Nxc5 {[%emt 0:00:35]} 17. Bxc5 {[%emt 0:00:02]} Rfd8 {[%emt 0:03:18]} 18. Bb6 {[%emt 0:00:45]} Rxd1+ {[%emt 0:01:05]} 19. Rxd1 {[%emt 0:00:02]} Kf8 {[%emt 0:01:59]} 20. Rd8+ {[%emt 0:02:35]} Rxd8 {[%emt 0:00:12]} 21. Bxd8 {[%emt 0:00:08]} Ke8 {[%emt 0:02:00]} 22. Bb6 {[%emt 0:00:38]} Bf5 {[%emt 0:01:19]} 23. e4 {[%emt 0:01:10]} Bg4 {[%emt 0:01:50]} 24. f3 {[%emt 0:00:45]} Be6 {[%emt 0:00:05]} 25. Bf1 {[%emt 0:02:15]} Bf8 {[%emt 0:02:00]} 26. Kf2 {[%emt 0:00:35]} Kd7 {[%emt 0:00:40]} 27. Ke3 {[%emt 0:01:54]} Ba3 {[%emt 0:01:57]} 28. Kd3 {[%emt 0:04:34]} Bb4 {[%emt 0:08:33]} 29. Bf2 {[%emt 0:02:51]} f5 {[%emt 0:03:22]} 30. Be2 {[%emt 0:04:54]} b5 {[%emt 0:02:02]} 31. cxb5 {[%emt 0:04:35]} cxb5 {[%emt 0:01:42]} 32. g4 {[%emt 0:02:20]} Kc6 {[%emt 0:05:58]} 33. Bg3 {[%emt 0:01:00]} Kd6 {[%emt 0:01:11]} 34. Bf2 {[%emt 0:03:54]} Bc5 {[%emt 0:01:37]} 35. Bg3 {[%emt 0:01:04]} Bd4 {[%emt 0:01:29]} 36. gxf5 {[%emt 0:03:55]} gxf5 {[%emt 0:00:19]} 37. f4 {[%emt 0:00:26]} a5 {[%emt 0:08:49]} 38. fxe5+ {[%emt 0:03:00]} Bxe5 {[%emt 0:00:50]} 39. Bxe5+ {[%emt 0:00:18]} Kxe5 {[%emt 0:00:06]} 40. exf5 {[%emt 0:00:22]} Bxf5+ {[%emt 0:01:10]} 41. Kc3 {[%emt 0:00:14]} b4+ {[%emt 0:04:03]} 42. Kc4 {[%emt 0:00:34]} Bb1 {[%emt 0:00:22]} 43. Kb5 {[%emt 0:00:17]} Kd4 {[%emt 0:00:44]} 44. Kxa5 {[%emt 0:00:48]} Kc3 {[%emt 0:00:31]} 45. Ka4 {[%emt 0:00:53]} Bxa2 {[%emt 0:00:31]} 46. Bc4 {[%emt 0:00:14]} Bb1 {[%emt 0:00:37]} 47. Bf7 {[%emt 0:01:20]} h6 {[%emt 0:01:05]} 48. h4 {[%emt 0:00:15]} Bd3 {[%emt 0:00:52]} 49. Be6 {[%emt 0:00:33]} Be4 {[%emt 0:00:32]} 50. Bf7 {[%emt 0:00:23]} Bf5 {[%emt 0:00:41]} 51. Bg8 {[%emt 0:00:50]} 1/2-1/2

[Event "1000GM Schev-G4 May 2024"]
[Site "Sunnyvale"]
[Date "2024.05.12"]
[Round "4.2"]
[White "Wu, Jayden"]
[Black "Zuluaga Mancilla, Cesar"]
[Result "0-1"]
[ECO "B28"]
[WhiteElo "1953"]
[BlackElo "2190"]
[Annotator "ChessBase"]
[PlyCount "82"]
[EventDate "2024.05.10"]
[EventType "schev"]
[EventCountry "USA"]
[SourceTitle "playchess.com"]
[Source "ChessBase"]
[SourceQuality "1"]
[TimeControl "5400+30"]

1. e4 {[%emt 0:00:08]} c5 {[%emt 0:04:52]} 2. Nf3 {[%emt 0:00:08]} a6 {[%emt 0:00:03]} 3. Be2 {[%emt 0:00:05]} d6 {[%emt 0:00:49]} 4. d4 {[%emt 0:00:25]} cxd4 {[%emt 0:00:05]} 5. Qxd4 {[%emt 0:00:17]} Nc6 {[%emt 0:00:12]} 6. Qe3 {[%emt 0:00:06]} Nf6 {[%emt 0:00:39]} 7. h3 {[%emt 0:00:36]} g6 {[%emt 0:00:35]} 8. O-O {[%emt 0:00:10]} Bg7 {[%emt 0:00:09]} 9. Nc3 {[%emt 0:00:41]} O-O {[%emt 0:00:13]} 10. Rd1 {[%emt 0:03:32]} Qc7 {[%emt 0:01:13]} 11. Bd2 {[%emt 0:05:45]} e6 {[%emt 0:02:54]} 12. Bc4 {[%emt 0:09:46]} b5 {[%emt 0:00:49]} 13. Bb3 {[%emt 0:00:12]} Bb7 {[%emt 0:00:19]} 14. Qe2 {[%emt 0:07:18]} Na5 {[%emt 0:01:25]} 15. Bf4 {[%emt 0:01:32]} Rfd8 {[%emt 0:13:09]} 16. Rac1 {[%emt 0:03:18]} b4 {[%emt 0:01:20]} 17. Na4 {[%emt 0:06:16]} Nxe4 {[%emt 0:01:05]} 18. Ng5 {[%emt 0:03:10]} Nxg5 {[%emt 0:00:59]} 19. Bxg5 {[%emt 0:00:08]} Re8 {[%emt 0:00:52]} 20. Qd2 {[%emt 0:03:44]} Nxb3 {[%emt 0:02:19]} 21. cxb3 {[%emt 0:01:35]} Qa5 {[%emt 0:00:18]} 22. Bf4 {[%emt 0:00:15]} e5 {[%emt 0:01:30]} 23. Be3 {[%emt 0:00:32]} Bf8 {[%emt 0:01:21]} 24. Bh6 {[%emt 0:11:02]} Be7 {[%emt 0:05:04]} 25. Bg5 {[%emt 0:00:45]} Bxg5 {[%emt 0:09:18]} 26. Qxg5 {[%emt 0:00:11]} Rad8 {[%emt 0:00:22]} 27. Rc4 {[%emt 0:02:00]} Qb5 {[%emt 0:08:34]} 28. Rh4 {[%emt 0:00:41]} h5 {[%emt 0:05:51]} 29. Re1 {[%emt 0:01:51]} e4 {[%emt 0:15:49]} 30. Rxh5 {[%emt 0:02:00]} Qxg5 {[%emt 0:00:19]} 31. Rxg5 {[%emt 0:00:07]} Kg7 {[%emt 0:02:45]} 32. Rd1 {[%emt 0:01:20]} f5 {[%emt 0:00:44]} 33. h4 {[%emt 0:03:57]} Kf6 {[%emt 0:00:52]} 34. Nb6 {[%emt 0:01:23]} d5 {[%emt 0:00:59]} 35. a3 {[%emt 0:02:53]} Re6 {[%emt 0:01:47]} 36. Na4 {[%emt 0:00:28]} bxa3 {[%emt 0:00:29]} 37. bxa3 {[%emt 0:01:17]} Rc6 {[%emt 0:01:06]} 38. b4 {[%emt 0:02:21]} Rc2 {[%emt 0:00:37]} 39. Nc5 {[%emt 0:00:12]} Bc6 {[%emt 0:01:40]} 40. Nb3 {[%emt 0:28:23]} Ba4 {[%emt 0:00:41]} 41. Nc5 {[%emt 0:00:00]} Bc6 {[%emt 0:00:08]} 0-1

[Event "1000GM Schev-G4 May 2024"]
[Site "Sunnyvale"]
[Date "2024.05.12"]
[Round "4.4"]
[White "Jaquez, Juan Manuel"]
[Black "Champsi, Imran"]
[Result "1-0"]
[ECO "B23"]
[WhiteElo "2208"]
[BlackElo "2029"]
[Annotator "ChessBase"]
[PlyCount "99"]
[EventDate "2024.05.10"]
[EventType "schev"]
[EventCountry "USA"]
[SourceTitle "playchess.com"]
[Source "ChessBase"]
[SourceQuality "1"]
[TimeControl "5400+30"]

1. e4 {[%emt 0:02:44]} c5 {[%emt 0:00:01]} 2. Nc3 {[%emt 0:00:19]} Nc6 {[%emt 0:00:04]} 3. Bc4 {[%emt 0:01:16]} g6 {[%emt 0:00:59]} 4. d3 {[%emt 0:01:28]} Bg7 {[%emt 0:00:17]} 5. Nge2 {[%emt 0:01:12]} a6 {[%emt 0:01:58]} 6. a4 {[%emt 0:00:27]} e6 {[%emt 0:01:57]} 7. f4 {[%emt 0:06:52]} d6 {[%emt 0:00:42]} 8. O-O {[%emt 0:04:55]} Nge7 {[%emt 0:02:15]} 9. Ng3 {[%emt 0:05:37]} O-O {[%emt 0:01:13]} 10. Nce2 {[%emt 0:10:14]} Rb8 {[%emt 0:08:14]} 11. c3 {[%emt 0:02:09]} b5 {[%emt 0:09:27]} 12. Ba2 {[%emt 0:03:30]} d5 {[%emt 0:13:37]} 13. e5 {[%emt 0:09:25]} c4 {[%emt 0:02:19]} 14. Be3 {[%emt 0:01:16]} f6 {[%emt 0:16:16]} 15. exf6 {[%emt 0:09:57]} Bxf6 {[%emt 0:01:42]} 16. axb5 {[%emt 0:00:03]} axb5 {[%emt 0:00:03]} 17. Bc5 {[%emt 0:01:09]} Qc7 {[%emt 0:02:52]} 18. d4 {[%emt 0:02:47]} Bd7 {[%emt 0:01:55]} 19. Bb1 {[%emt 0:02:06]} Na5 {[%emt 0:02:14]} 20. Bc2 {[%emt 0:00:24]} Ra8 {[%emt 0:00:30]} 21. Qd2 {[%emt 0:00:42]} Rfb8 {[%emt 0:00:32]} 22. Ra3 {[%emt 0:02:35]} Nb7 {[%emt 0:01:46]} 23. Rfa1 {[%emt 0:00:53]} Rxa3 {[%emt 0:00:15]} 24. Bxa3 {[%emt 0:00:18]} Ra8 {[%emt 0:01:10]} 25. Re1 {[%emt 0:00:29]} Nd6 {[%emt 0:02:09]} 26. Nf1 {[%emt 0:03:09]} Nc6 {[%emt 0:02:00]} 27. Bxd6 {[%emt 0:01:51]} Qxd6 {[%emt 0:00:02]} 28. Ne3 {[%emt 0:00:20]} b4 {[%emt 0:03:35]} 29. Ng4 {[%emt 0:03:39]} Bg7 {[%emt 0:00:37]} 30. Ne5 {[%emt 0:05:36]} b3 {[%emt 0:03:12]} 31. Bb1 {[%emt 0:00:38]} Rf8 {[%emt 0:03:47]} 32. Qe3 {[%emt 0:02:05]} Nxe5 {[%emt 0:01:06]} 33. dxe5 {[%emt 0:00:15]} Qc7 {[%emt 0:01:03]} 34. Nd4 {[%emt 0:00:19]} Qa7 {[%emt 0:03:21]} 35. g4 {[%emt 0:01:55]} Bh6 {[%emt 0:01:08]} 36. g5 {[%emt 0:02:15]} Bg7 {[%emt 0:00:32]} 37. h4 {[%emt 0:00:14]} Bc8 {[%emt 0:01:34]} 38. Rf1 {[%emt 0:00:58]} Qa1 {[%emt 0:03:17]} 39. Qe2 {[%emt 0:01:36]} Qa7 {[%emt 0:02:46]} 40. Kg2 {[%emt 0:00:14]} Qe7 {[%emt 0:01:46]} 41. Qg4 {[%emt 0:02:37]} Qf7 {[%emt 0:01:33]} 42. Qe2 {[%emt 0:00:32]} Qe7 {[%emt 0:00:50]} 43. Kg3 {[%emt 0:00:12]} Rf7 {[%emt 0:01:06]} 44. h5 {[%emt 0:02:08]} gxh5 {[%emt 0:00:39]} 45. Rh1 {[%emt 0:00:24]} h6 {[%emt 0:01:49]} 46. Rxh5 {[%emt 0:00:40]} hxg5 {[%emt 0:00:26]} 47. Rxg5 {[%emt 0:00:29]} Kf8 {[%emt 0:00:39]} 48. Bg6 {[%emt 0:01:36]} Bh6 {[%emt 0:00:05]} 49. Qh5 {[%emt 0:00:20]} Bxg5 {[%emt 0:00:19]} 50. Qh8# {[%emt 0:00:06]} 1-0